[Event "Chhattisgarh Masters GM 2022"]
[Site "Chhattisgarh"]
[Date "2022.09.27"]
[Round "9.2"]
[White "Liyanage, Ranindu Dilshan"]
[Black "Arya Bhakta"]
[Result "1-0"]
[ECO "B23"]
[WhiteElo "2306"]
[BlackElo "2053"]
[Annotator "TA"]
[PlyCount "117"]
[EventDate "2022.09.19"]
[EventCountry "IND"]
[SourceTitle "playchess.com"]
[Source "ChessBase"]
[SourceQuality "1"]
[TimeControl "5400+30"]

{[%evp 9,117,4,2,0,0,-21,0,0,96,83,106,-12,-11,-15,-15,-23,-20,-7,-15,-22,0,0,0,0,0,0,13,12,25,-23,31,33,28,14,21,28,45,0,0,0,0,0,12,7,31,37,42,38,31,27,33,38,56,34,72,64,152,152,152,139,133,137,192,83,78,57,46,59,83,72,68,60,72,72,72,72,72,47,141,142,142,137,150,150,150,150,150,150,235,199,366,366,493,493,669,632,617,603,29980,366,29981,29970,29969,29970,29984,29986,29986,29987,29983,916]} 1. e4 {[%emt 0:00:08]} c5 {[%emt 0:00:18]} 2. Nc3 {[%emt 0:00:18]} d6 {[%emt 0:00:38]} 3. f4 {[%emt 0:00:16][%cal Bf2f4,Bf4f5][%mdl 32]} g6 {[%emt 0:00:24]} 4. Nf3 {[%emt 0:00:19]} Bg7 {[%emt 0:00:24]} 5. Bb5+ {[%emt 0:00:36]} Bd7 {[%emt 0:01:51]} 6. Bc4 {[%emt 0:00:34] B23: Closed Sicilian: Lines without g3.} Nc6 {[%emt 0:02:43]} 7. d3 {[%emt 0:00:23]} e6 {[%emt 0:00:43]} 8. f5 {[%emt 0:00:34] The position is equal.} Nge7 {[%emt 0:12:01]} (8... exf5 $11 9. Bf4 Nge7) 9. Ng5 $1 $16 {[%emt 0:01:29][%cal Og5f7] [#]} d5 $146 {[%emt 0:25:17] [#]} ({Predecessor:} 9... Nd4 10. O-O gxf5 11. Qh5 Rf8 12. Nxh7 Rh8 13. Bg5 Qb6 14. Bxe7 Qxb2 15. exf5 Nxf5 16. Rxf5 Qxa1+ {1-0 (33) Erigaisi,A (2633)-Sarana,A (2685) Chess.com INT 2022}) 10. exd5 {[%emt 0:38:59]} ({White should try} 10. fxe6 $1 $16 Bxe6 11. exd5 Bxc3+ 12. bxc3 Bxd5 13. Bxd5 Nxd5 14. Qe2+ Qe7 15. Qxe7+ Ndxe7 16. Ne4) 10... exd5 $11 {[%emt 0:23:43]} 11. Nxd5 {[%emt 0:02:47]} Bxf5 {[%emt 0:06:42]} 12. Ne3 {[%emt 0:08:21]} O-O {[%emt 0:02:52][%cal Ob7b5]} 13. O-O {[%emt 0:00:40]} Ne5 $1 {[%emt 0:01:53]} 14. Bb3 $1 {[%emt 0:00:32]} a5 {[%emt 0:06:57]} 15. a4 $1 {[%emt 0:03:11]} Ra6 {[%emt 0:00:39]} 16. Kh1 {[%emt 0:04:12]} h6 {[%emt 0:03:27]} 17. Nf3 {[%emt 0:03:41]} Kh7 {[%emt 0:02:50]} 18. Nxe5 {[%emt 0:07:48]} Bxe5 {[%emt 0:00:07]} 19. Qf3 {[%emt 0:01:55]} (19. Bc4 $142) 19... Qc7 {[%emt 0:02:27]} (19... Bc8 $1 $11) 20. Nxf5 $14 {[%emt 0:00:41]} Nxf5 {[%emt 0:00:58]} 21. Qh3 {[%emt 0:00:06]} Bg7 {[%emt 0:03:24]} 22. Bf4 {[%emt 0:00:41]} Be5 {[%emt 0:00:25]} 23. Bd2 {[%emt 0:00:47]} Bxb2 {[%emt 0:00:37]} 24. Rab1 {[%emt 0:01:50]} Bg7 {[%emt 0:00:32]} 25. Bd5 {[%emt 0:00:06]} Qd7 {[%emt 0:00:34]} 26. Bxb7 {[%emt 0:01:06]} Ra7 {[%emt 0:00:26]} 27. Be4 $36 {[%emt 0:00:39][%cal Rf1f5][%mdl 2048] Threatens to win with Rxf5. White has some pressure.} Nd4 {[%emt 0:00:06]} 28. Qxd7 {[%emt 0:01:59]} (28. g4 {seems wilder.} Nxc2 29. Rbc1 Nd4 30. Rxc5 Ne6 31. Rb5) 28... Rxd7 {[%emt 0:00:02]} 29. Bxa5 {[%emt 0:00:10]} f5 {[%emt 0:00:35]} 30. Bf3 {[%emt 0:01:50] A strong pair of Bishops.} Nxc2 {[%emt 0:01:07]} 31. Bb6 {[%emt 0:00:18]} Rxd3 {[%emt 0:00:39]} 32. a5 {[%emt 0:00:05] aiming for a6.} Ra3 {[%emt 0:00:33]} (32... Na3 $14 33. Rbd1 (33. Bxc5 Nxb1 34. Bxf8 Nd2 $17) 33... Rxd1 34. Rxd1 Nc4) 33. Bxc5 {[%emt 0:00:22]} Rxa5 {[%emt 0:00:04]} 34. Bxf8 {[%emt 0:00:07]} Bxf8 {[%emt 0:00:02]} 35. Rb7+ {[%emt 0:00:11]} Bg7 {[%emt 0:00:53]} (35... Kh8 $16 {might work better.} 36. Rd1 Ne3) 36. Rd1 {[%emt 0:00:31]} (36. Rc1 $18) 36... Ne3 $16 {[%emt 0:00:29]} 37. Rc1 {[%emt 0:00:07]} h5 $1 {[%emt 0:00:30]} 38. Rb3 {[%emt 0:03:45]} f4 {[%emt 0:00:49]} 39. Rb6 {[%emt 0:02:34]} Kh6 {[%emt 0:00:44]} 40. Be4 {[%emt 0:00:48]} Nf5 {[%emt 0:00:28]} 41. Rcc6 {[%emt 0:08:54]} Ra1+ {[%emt 0:00:00]} 42. Rb1 {[%emt 0:00:00]} Ra5 {[%emt 0:00:00]} 43. Kg1 {[%emt 0:00:00]} h4 {[%emt 0:00:00] White now steadily converts the win.} ({Black should play} 43... Bd4+ $14 44. Kf1 Kg5) 44. Bxf5 {[%emt 0:00:00]} Rxf5 {[%emt 0:00:00][%mdl 4096] Endgame KRR-KRB} 45. Kf2 {[%emt 0:00:00]} h3 {[%emt 0:00:00]} 46. gxh3 {[%emt 0:00:00]} Rh5 {[%emt 0:00:00]} 47. Rb3 {[%emt 0:00:00]} Bd4+ {[%emt 0:00:00] [#]} 48. Kg2 $1 {[%emt 0:00:00]} Be3 {[%emt 0:00:00]} (48... Rg5+ $16 49. Kf3 Rh5) 49. Rb8 {[%emt 0:00:00] And now Rg8 would win.} Ra5 $2 {[%emt 0:00:00]} (49... Bd4 {was necessary.} 50. Rd8 Be5) 50. Rg8 $18 {[%emt 0:00:00]} Ra2+ {[%emt 0:00:00]} 51. Kf3 {[%emt 0:00:00]} Rf2+ {[%emt 0:00:00]} 52. Ke4 {[%emt 0:00:00]} Rg2 {[%emt 0:00:00]} 53. h4 {[%emt 0:00:00][%cal Bh3h4,Bh4g5][%mdl 32] Black must now prevent Rc7.} Bf2 {[%emt 0:06:28]} 54. Kxf4 $2 {[%emt 0:00:00]} (54. Kf3 {mates} Rg1 55. Kxf2 Rh1 56. Kf3 Rf1+ 57. Kg4 Kh7 58. Rd8 Kg7 59. Rd7+ Kh6 60. Rcc7) 54... Kh7 $2 {[%emt 0:00:26]} (54... Bd4 $18 55. Rd8 Ba1) 55. Re8 {[%emt 0:00:00] White mates.} Bd4 {[%emt 0:00:26]} 56. Re7+ {[%emt 0:00:46]} Bg7 {[%emt 0:00:45]} 57. Rcc7 {[%emt 0:00:14]} g5+ {[%emt 0:00:12]} 58. hxg5 {[%emt 0:00:20]} Kh8 {[%emt 0:00:03]} 59. h4 {[%emt 0:01:01] Weighted Error Value: White=0.20 (precise) /Black=0.41} (59. Kf5 $142 Rf2+ 60. Kg6 Rf8 61. Rf7 Rg8 62. Kh5 (62. Rxg7 Rxg7+ 63. Rxg7 $11) 62... Kh7 63. Rf6 Rh8 64. Re6) 1-0

[Event "Chhattisgarh Masters GM 2022"]
[Site "Chhattisgarh"]
[Date "2022.09.27"]
[Round "9.3"]
[White "Venkatesh, M.R."]
[Black "Subhayan Kundu"]
[Result "1-0"]
[ECO "C47"]
[WhiteElo "2481"]
[BlackElo "2327"]
[Annotator "TA"]
[PlyCount "75"]
[EventDate "2022.09.19"]
[EventCountry "IND"]
[SourceTitle "playchess.com"]
[Source "ChessBase"]
[SourceQuality "1"]
[TimeControl "5400+30"]

{[%evp 21,75,29,62,58,68,63,68,68,70,81,65,58,55,3,3,5,10,6,12,14,69,23,54,48,50,50,112,113,128,127,125,125,205,206,207,202,200,200,216,229,227,222,254,252,244,240,281,290,285,278,273,260,1533,278,278,275]} 1. e4 {[%emt 0:00:05]} e5 {[%emt 0:00:31]} 2. Nf3 {[%emt 0:00:24]} Nc6 {[%emt 0:00:08]} 3. Nc3 {[%emt 0:04:31]} Nf6 {[%emt 0:01:26]} 4. g3 {[%emt 1:27:30]} d5 {[%emt 0:05:50]} 5. exd5 {[%emt 0:00:00]} Nxd5 {[%emt 0:00:05]} 6. Bg2 {[%emt 0:00:00]} Nxc3 {[%emt 0:09:39]} 7. bxc3 {[%emt 0:00:00]} Be7 {[%emt 0:00:57]} 8. O-O {[%emt 0:00:00]} O-O {[%emt 0:00:49]} 9. Re1 {[%emt 0:00:00]} Bf6 {[%emt 0:00:22]} 10. d3 {[%emt 0:00:00]} Re8 {[%emt 0:01:40]} 11. Nd2 {[%emt 0:00:00]} Be6 {[%emt 0:08:55]} 12. Rb1 {[%emt 0:00:00] C47: Scotch Four Knights and Four Knights with 4 g3.} Rb8 {[%emt 0:00:32] [#]} 13. Rxb7 $146 {[%emt 0:00:00]} ({Predecessor:} 13. a4 Qd7 14. Qf3 Be7 15. Ne4 Bg4 16. Qe3 b6 17. Ng5 Nd4 18. Qe4 Bf5 19. Qd5 Bxg5 20. Qxd7 Bxd7 21. Bxg5 {1-0 (50) Gonzalez,R (2408)-Garbisu de Goni,U (2414) Havana 1999}) 13... Rxb7 {[%emt 0:00:54]} 14. Bxc6 {[%emt 0:00:00] White is slightly better.} Rb8 {[%emt 0:00:34]} 15. Bxe8 {[%emt 0:00:00]} Qxe8 {[%emt 0:00:01]} 16. c4 {[%emt 0:00:00]} Qc6 {[%emt 0:03:33]} 17. Qf3 {[%emt 0:00:00]} (17. f3 $14) 17... Qa4 $1 $11 {[%emt 0:04:26][%csl LRa2,LRc2]} 18. Ne4 {[%emt 0:00:00]} Be7 {[%emt 0:00:16]} 19. Qe2 {[%emt 0:00:00]} Qxa2 {[%emt 0:07:28]} 20. Nc3 $36 {[%emt 0:00:00][%csl LRa2,LRe5][%mdl 2048] White has some pressure.} Qa5 {[%emt 0:07:44]} (20... Qa6 $1 $11) 21. Bd2 {[%emt 0:00:00]} (21. Qxe5 $14 Qxe5 22. Rxe5) 21... Bb4 {[%emt 0:26:15]} 22. Qxe5 {[%emt 0:00:00]} (22. Rb1 {looks sharper.} Ra8 23. Qe1 c6 24. Ra1) 22... Qxe5 {[%emt 0:01:17]} 23. Rxe5 {[%emt 0:00:00]} Bxc3 {[%emt 0:02:51] White leaves nothing to chance now.} (23... Bd7 $14) 24. Bxc3 $14 {[%emt 0:00:00][%mdl 4096] Endgame KRB-KRB} Rb1+ {[%emt 0:00:07]} 25. Kg2 {[%emt 0:00:00]} Rc1 {[%emt 0:00:06]} 26. Rg5 {[%emt 0:01:05]} Kf8 {[%emt 0:01:12]} (26... Rxc2 $16 27. Bxg7 h6 28. Bxh6+ Kh7) 27. Bxg7+ $18 {[%emt 0:00:57]} Ke8 {[%emt 0:00:29]} 28. Ra5 {[%emt 0:05:22]} Rxc2 {[%emt 0:00:16] [#]} 29. Kf3 $1 {[%emt 0:00:10]} ({Much less strong is} 29. Rxa7 Rd2 30. Rxc7 Kd8) 29... c6 {[%emt 0:01:25]} 30. Rxa7 {[%emt 0:02:18]} h5 {[%emt 0:00:04]} 31. Ke3 {[%emt 0:00:59]} Bg4 {[%emt 0:00:05]} 32. f3 {[%emt 0:00:39]} Bh3 {[%emt 0:00:50]} 33. Bf6 {[%emt 0:00:57]} Rxh2 {[%emt 0:00:27]} 34. Re7+ {[%emt 0:00:19]} Kf8 {[%emt 0:00:14]} 35. Rc7 {[%emt 0:00:12]} Ke8 {[%emt 0:00:06]} 36. Rxc6 {[%emt 0:00:15] Rd6 is the strong threat.} Rg2 $2 {[%emt 0:00:18]} (36... Kd7 37. Ra6 Bf1) 37. Bh4 $2 {[%emt 0:00:33]} (37. Rd6 {[%csl Gf6][%cal Rd6d8]} Bd7 38. c5) 37... Kd7 {[%emt 0:00:07]} 38. Rh6 {[%emt 0:00:30] Weighted Error Value: White=0.37/Black=0.16 (very precise)} 1-0

[Event "Chhattisgarh Masters GM 2022"]
[Site "Chhattisgarh"]
[Date "2022.09.27"]
[Round "9.3"]
[White "Batchuluun, Tsegmed"]
[Black "Sammed Jaykumar, Shete"]
[Result "1-0"]
[ECO "E04"]
[WhiteElo "2478"]
[BlackElo "2387"]
[Annotator "TA"]
[PlyCount "87"]
[EventDate "2022.09.19"]
[EventCountry "IND"]
[SourceTitle "playchess.com"]
[Source "ChessBase"]
[SourceQuality "1"]
[TimeControl "5400+30"]

{[%evp 11,87,36,18,44,53,0,0,0,0,0,0,0,0,0,0,0,0,0,0,0,0,0,0,0,0,0,0,0,0,0,0,-17,0,0,0,0,0,0,0,0,0,0,6,0,0,0,6,0,0,0,6,0,8,0,95,89,95,75,352,351,501,496,698,577,526,464,406,0,503,395,380,353,541,541,29983,29984,29989,29990]} 1. d4 {[%emt 0:00:05]} Nf6 {[%emt 0:00:06]} 2. c4 {[%emt 0:00:05]} e6 {[%emt 0:00:07]} 3. Nf3 {[%emt 0:00:14]} d5 {[%emt 0:00:06]} 4. g3 {[%emt 0:00:04]} dxc4 {[%emt 0:00:16]} 5. Bg2 {[%emt 0:00:10]} a6 {[%emt 0:00:10]} 6. O-O {[%emt 0:00:44]} b5 {[%emt 0:00:13]} 7. Ne5 {[%emt 0:04:42] E04: Open Catalan: 5 Nf3.} c6 {[%emt 0:00:40]} 8. a4 {[%emt 0:00:28]} (8. b3 $1 $14) 8... Bb7 $1 $11 {[%emt 0:00:09]} 9. axb5 {[%emt 0:08:12] The position is equal.} axb5 {[%emt 0:01:31]} 10. Rxa8 {[%emt 0:00:04]} Bxa8 {[%emt 0:00:05]} 11. Nc3 {[%emt 0:00:02]} Nd5 {[%emt 0:02:33]} 12. e4 {[%emt 0:14:32]} Nxc3 {[%emt 0:01:48]} 13. bxc3 {[%emt 0:00:04]} Nd7 {[%emt 0:16:39]} 14. Nxd7 {[%emt 0:22:44]} Qxd7 {[%emt 0:00:06]} 15. Bf4 {[%emt 0:00:35]} Be7 {[%emt 0:07:40]} 16. Qg4 $1 {[%emt 0:00:38]} g6 {[%emt 0:01:19]} 17. Bh6 {[%emt 0:01:44] [#]} f6 $146 {[%emt 0:04:32]} ({Predecessor:} 17... Bb7) 18. h4 {[%emt 0:10:38]} Kf7 {[%emt 0:06:48]} 19. h5 {[%emt 0:01:00]} Rd8 {[%emt 0:11:59]} 20. hxg6+ {[%emt 0:02:38]} hxg6 {[%emt 0:00:05]} 21. Be3 {[%emt 0:00:09]} Rh8 {[%emt 0:02:10] Prevents Qh3.} 22. Ra1 {[%emt 0:01:07]} Bb7 {[%emt 0:06:25]} 23. Ra7 {[%emt 0:01:52][%cal Od4d5] [#] Strongly threatening d5!} Ra8 {[%emt 0:00:48]} 24. Rxa8 {[%emt 0:01:24]} Bxa8 {[%emt 0:00:05]} 25. Qh4 {[%emt 0:01:59]} Kg8 {[%emt 0:00:55] Prevents Qh7+.} 26. Bh3 {[%emt 0:07:11]} Bd8 {[%emt 0:15:43]} 27. Qg4 {[%emt 0:04:55][%csl LRe6,LRg6]} Kf7 {[%emt 0:00:11]} 28. Qh4 {[%emt 0:00:05][%cal Od4d5] White wants to mate with d5!} Kg8 {[%emt 0:00:16]} 29. Qg4 $36 {[%emt 0:02:09][%csl LRe6,LRg6][%mdl 2048] White is more active.} Kf7 {[%emt 0:00:06]} 30. Qf4 {[%emt 0:03:17]} g5 {[%emt 0:07:44]} 31. Qg4 {[%emt 0:00:23]} Qe7 {[%emt 0:00:05]} 32. f4 {[%emt 0:01:49]} Bb7 {[%emt 0:02:06]} (32... Ke8 $11) 33. e5 $16 {[%emt 0:03:22][%cal Od4d5] d5! is the strong threat.} c5 {[%emt 0:05:56]} 34. dxc5 {[%emt 0:04:37] Hoping for Qh5+.} f5 $2 {[%emt 0:06:38][%mdl 8192]} (34... Qd7 $16) 35. Qh5+ $18 {[%emt 0:00:05]} (35. Qxg5 Qxg5 36. fxg5 Bc7 $11) 35... Kg7 {[%emt 0:00:59]} (35... Kg8 $142 36. Qg6+ (36. Qxg5+ Qxg5 37. fxg5 Ba5 $14) (36. fxg5 Ba5 $16) 36... Kf8) 36. fxg5 {[%emt 0:00:05] And now g6 would win.} (36. c6 Bxc6 37. fxg5 Qf7 38. Qh6+ (38. Qh4 Ba5 $15) 38... Kg8 $11) 36... Bc6 {[%emt 0:00:35]} (36... Qf7 $142 37. Qh6+ (37. Qh4 Ba5 $16) 37... Kg8) 37. Qh6+ {[%emt 0:02:51]} Kg8 {[%emt 0:00:17]} 38. Qg6+ {[%emt 0:01:50]} Kf8 {[%emt 0:00:02]} 39. Qh6+ {[%emt 0:00:05]} Kg8 {[%emt 0:00:06]} 40. Bg2 {[%emt 0:00:51]} Be8 {[%emt 0:01:00]} 41. c6 {[%emt 0:01:00]} Bc7 {[%emt 0:00:00]} (41... Qf7 {is a better defense.} 42. Bc5 Bc7) 42. Bd4 {[%emt 0:00:00]} Bf7 {[%emt 0:00:00]} 43. g6 {[%emt 0:00:00]} Be8 {[%emt 0:00:00] [#]} 44. Bd5 $1 {[%emt 0:00:00][%mdl 512] Weighted Error Value: White=0.31/Black=0.49} 1-0

[Event "Chhattisgarh Masters GM 2022"]
[Site "Chhattisgarh"]
[Date "2022.09.27"]
[Round "9.4"]
[White "Arpita, Mukherjee"]
[Black "Nithin Babu"]
[Result "1/2-1/2"]
[ECO "B30"]
[WhiteElo "2293"]
[BlackElo "1990"]
[Annotator "TA"]
[PlyCount "116"]
[EventDate "2022.09.19"]
[EventCountry "IND"]
[SourceTitle "playchess.com"]
[Source "ChessBase"]
[SourceQuality "1"]
[TimeControl "5400+30"]

{[%evp 9,116,39,35,32,59,32,29,5,18,16,2,16,8,12,2,16,24,6,10,10,29,24,55,48,54,49,53,25,72,8,5,5,5,0,0,0,1,0,6,4,11,0,0,0,5,5,6,7,5,5,12,12,17,17,17,11,34,12,49,49,45,13,14,4,4,4,13,13,13,13,13,13,13,13,22,22,44,44,44,44,44,44,44,3,12,12,12,0,19,19,20,0,20,0,0,0,0,0,0,0,3,3,40,40,44,20,20,3,3]} 1. e4 {[%emt 0:04:16]} c5 {[%emt 0:00:05]} 2. Nf3 {[%emt 0:00:14]} Nc6 {[%emt 0:00:05]} 3. Bb5 {[%emt 0:00:12]} e5 {[%emt 0:00:08]} 4. O-O {[%emt 0:01:00]} Bd6 {[%emt 0:00:08]} 5. c3 {[%emt 0:01:08]} a6 {[%emt 0:00:05]} 6. Ba4 {[%emt 0:00:48] B30: Sicilian: 2...Nc6 3 Bb5, lines without ...g6.} b5 {[%emt 0:00:08]} 7. Bc2 {[%emt 0:00:16]} Nge7 {[%emt 0:00:07]} 8. d4 {[%emt 0:00:54] White has an edge.} cxd4 {[%emt 0:00:25]} 9. cxd4 {[%emt 0:00:12]} Nxd4 {[%emt 0:01:50]} 10. Nxd4 {[%emt 0:00:47]} exd4 {[%emt 0:00:02]} 11. Qxd4 {[%emt 0:09:26]} Qc7 {[%emt 0:01:39][%csl LRc2,LRh2]} 12. h3 {[%emt 0:13:17]} ({Much worse is} 12. Qxg7 Bxh2+ 13. Kh1 Be5 $17) 12... O-O {[%emt 0:13:04]} 13. Bb3 {[%emt 0:02:06] [#]} Bc5 $146 {[%emt 0:11:35]} ({Predecessor:} 13... Bb7) 14. Qd1 {[%emt 0:05:29]} d5 {[%emt 0:22:47]} 15. exd5 {[%emt 0:02:13]} Bb7 {[%emt 0:24:38]} 16. Nc3 {[%emt 0:05:17]} Rad8 {[%emt 0:00:46]} 17. Bg5 {[%emt 0:02:14][%cal Bc1g5,Bg5h4,Bh4g3][%mdl 32]} h6 {[%emt 0:02:18]} 18. Bh4 {[%emt 0:10:12]} (18. Bxe7 $5 Bxe7 19. Re1 $14) 18... Qf4 {[%emt 0:13:21]} (18... g5 $11) 19. Qg4 {[%emt 0:20:52]} (19. g3 $16 Qc7 20. Rc1) 19... Qxg4 $11 {[%emt 0:00:56]} 20. hxg4 {[%emt 0:00:01] [#] Hoping for Ne4.} g5 $132 {[%emt 0:01:05][%mdl 2048] Black is not keeping still} 21. Bg3 {[%emt 0:04:00] aiming for Rac1.} (21. Ne4 {keeps more tension.} Bd4 22. Bg3 Bxd5 23. Bd6) 21... Nxd5 {[%emt 0:00:43]} 22. Ne4 {[%emt 0:01:59]} Be7 {[%emt 0:00:11]} 23. Rac1 {[%emt 0:02:11]} Nf4 {[%emt 0:00:31]} 24. Bxf4 {[%emt 0:00:18]} gxf4 {[%emt 0:01:51]} 25. Rfe1 {[%emt 0:02:59]} Rc8 {[%emt 0:00:55] Prevents Nc5.} 26. Nc3 {[%emt 0:02:11]} Bf6 {[%emt 0:01:01]} 27. Bd5 {[%emt 0:02:37]} Rxc3 {[%emt 0:01:17]} 28. Bxb7 {[%emt 0:00:08]} Rxc1 {[%emt 0:00:29]} 29. Rxc1 {[%emt 0:00:02]} Bxb2 {[%emt 0:00:18][%mdl 4096] Endgame KRB-KRB} 30. Rc2 {[%emt 0:00:05]} Be5 {[%emt 0:01:18]} 31. Bxa6 {[%emt 0:00:26]} b4 {[%emt 0:00:13]} 32. Rc5 {[%emt 0:01:38]} Bd6 {[%emt 0:00:18]} 33. Rf5 {[%emt 0:01:17]} Rd8 {[%emt 0:01:31]} 34. Bc4 {[%emt 0:00:33]} Rd7 {[%emt 0:00:08]} 35. Kh2 {[%emt 0:04:05]} Kg7 {[%emt 0:00:22]} 36. Kh3 {[%emt 0:00:12]} Rc7 {[%emt 0:00:30]} 37. Bb3 {[%emt 0:01:00]} Rb7 {[%emt 0:01:10]} 38. g5 {[%emt 0:01:00]} hxg5 {[%emt 0:00:14]} 39. Rxg5+ {[%emt 0:00:02]} Kf6 {[%emt 0:00:58]} 40. Kg4 {[%emt 0:00:13]} Rc7 {[%emt 0:00:33]} 41. Rf5+ {[%emt 0:01:07]} Kg7 {[%emt 0:00:00]} 42. Rd5 {[%emt 0:00:00]} Rc6 {[%emt 0:00:00]} 43. Rg5+ {[%emt 0:00:00]} Kf8 $1 {[%emt 0:00:00]} 44. Rf5 {[%emt 0:00:00]} Rc7 {[%emt 0:00:00]} 45. Rf6 {[%emt 0:00:00]} Rd7 {[%emt 0:00:00]} 46. Kh5 {[%emt 0:00:00][%cal Ob3f7]} (46. Bxf7 $5 Kg7 47. Be8 $14) 46... Kg7 {[%emt 0:00:00]} 47. Rf5 {[%emt 0:00:00]} Rc7 {[%emt 0:00:00]} 48. Kg4 {[%emt 0:00:00]} Rd7 {[%emt 0:00:00]} 49. Rd5 {[%emt 0:00:00]} Kf6 {[%emt 0:00:00]} 50. Rf5+ {[%emt 0:00:00]} Kg7 {[%emt 0:00:00]} 51. Kg5 {[%emt 0:00:00]} f6+ {[%emt 0:00:00]} 52. Kg4 {[%emt 0:00:00]} ({Avoid the trap} 52. Rxf6 $2 Be7 53. Kf5 Bxf6 $19) 52... Be5 {[%emt 0:00:00]} 53. Rh5 {[%emt 0:00:00]} Rd2 {[%emt 0:00:00]} 54. Kf3 {[%emt 0:00:00]} Rd3+ {[%emt 0:01:08]} 55. Ke2 {[%emt 0:00:00]} f3+ {[%emt 0:01:10]} 56. gxf3 {[%emt 0:00:00]} (56. Kxd3 $2 {is the wrong capture.} fxg2 57. Rh4 g1=Q $19) 56... Rd4 {[%emt 0:01:03]} 57. Rh1 {[%emt 0:00:00]} Bf4 {[%emt 0:00:41]} 58. Rd1 {[%emt 0:00:00]} Rxd1 {[%emt 0:00:07] Weighted Error Value: White=0.09 (flawless) /Black=0.07 (flawless)} 1/2-1/2